bitfinex-derivatives/quotes_ETHF0:USTF0_20260214
["timestamp","ask_amount","ask_price","bid_price","bid_amount"]
[1771049590635,2.38090147,2050.6,2049.9,0.59734398]
[1771049590838,5.97013846,2050.5,2049.9,0.59734398]
[1771049591036,2.38090147,2050.4,2049.9,0.59734398]
[1771049591936,2.38090147,2050.4,2050.2,17.5709]
[1771049592140,2.38090147,2050.4,2049.9,0.59734398]
[1771049594941,2.38090147,2050.6,2049.9,0.59734398]
[1771049598242,8.4744361,2051.0,2050.1,0.59824446]
[1771049598243,0.00456901,2051.0,2050.1,0.59824446]
[1771049599138,0.00456901,2051.0,2050.3,0.59559782]
[1771049599740,2.38547048,2051.0,2050.3,0.59559782]
[1771049599936,0.54716944,2050.7,2050.2,0.79811497]
[1771049600644,0.54716944,2050.7,2050.2,0.24401]
[1771049602739,0.54716944,2050.7,2050.1,0.55410497]
[1771049614859,0.53571949,2050.5,2050.1,0.55410497]
[1771049621070,0.53571949,2050.5,2049.8,2.38443001]
[1771049621270,0.53571949,2050.5,2049.9,0.53659915]
[1771049623971,2.38039268,2050.6,2049.9,0.53659915]
[1771049626573,0.53816143,2050.7,2049.9,0.53659915]
[1771049637884,0.53816143,2050.5,2049.9,0.53659915]
[1771049640989,0.53816143,2050.3,2049.9,0.53659915]
[1771049641689,2.38039268,2050.2,2049.9,0.53659915]
[1771049641887,0.53935352,2050.2,2049.9,0.53659915]
[1771049642087,0.53935352,2050.3,2049.9,0.53659915]
[1771049650491,0.53935352,2050.6,2050.1,0.53886792]
[1771049651993,2.9197462,2050.8,2050.1,0.53886792]
[1771049653095,0.53935352,2050.9,2050.3,0.53886792]
[1771049655399,0.53935352,2050.9,2050.3,2.9192606]
[1771049655595,0.53935352,2050.9,2050.4,0.53886792]
[1771049657599,0.54392253,2051.0,2050.4,0.53886792]
[1771049660506,0.53935352,2050.9,2050.4,0.53886792]
[1771049661207,2.38496169,2051.0,2050.4,0.53886792]
[1771049661606,0.53935352,2050.9,2050.4,0.53886792]
[1771049696942,0.00456901,2051.0,2050.4,0.53886792]
[1771049697146,0.58537947,2051.0,2050.4,0.53886792]
[1771049724060,0.00456901,2051.0,2050.4,0.53886792]
[1771049733566,0.58536593,2051.0,2050.4,0.53886792]
[1771049738467,0.58079692,2050.8,2050.3,0.56053544]
[1771049738766,0.58079692,2050.6,2050.2,0.56053544]
[1771049738967,2.96143177,2050.5,2050.2,0.5534201]
[1771049752385,0.58079692,2050.5,2050.2,0.5534201]
[1771049752581,0.53515122,2050.6,2050.2,0.5534201]
[1771049764882,0.54614576,2050.9,2050.2,0.5534201]
[1771049765887,0.54614576,2050.8,2050.2,0.5534201]
[1771049767989,0.54614576,2050.9,2050.4,0.56237262]
[1771049768791,0.00456901,2051.0,2050.4,0.56237262]
[1771049768992,0.55071477,2051.0,2050.6,0.56237262]
[1771049771188,0.00456901,2051.0,2050.6,0.56237262]
[1771049771393,0.55071477,2051.0,2050.6,0.56237262]
[1771049772188,0.00456901,2051.0,2050.6,0.56237262]
[1771049772395,0.54614576,2051.2,2050.6,0.56237262]
[1771049772794,0.54614576,2051.2,2050.6,0.55899426]
[1771049772994,0.54614576,2051.2,2050.8,0.56237262]
[1771049773294,0.55067671,2051.2,2050.8,0.56237262]
[1771049775199,0.00453095,2051.2,2050.8,0.56237262]
[1771049777799,4.081,2051.4,2050.8,0.56237262]
[1771049778390,4.62714576,2051.4,2050.8,0.56237262]
[1771049778594,0.54614576,2051.6,2051.0,0.56237262]
[1771049778794,0.55014753,2051.6,2051.0,0.56237262]
[1771049781301,0.55014753,2051.6,2051.1,0.56237262]
[1771049784196,0.55014753,2051.6,2051.0,2.38063485]
[1771049784197,0.00400177,2051.6,2051.3,0.56237262]
[1771049784501,0.54614576,2051.7,2051.3,0.5664896]
[1771049785404,0.55161438,2051.7,2051.3,0.5664896]
[1771049787001,0.54614576,2052.0,2051.5,0.56237262]
[1771049787305,0.54614576,2052.1,2051.5,0.56237262]
[1771049788206,0.55102767,2052.1,2051.5,0.56237262]
[1771049789905,0.00488191,2052.1,2051.5,0.56237262]
[1771049790507,0.00488191,2052.1,2051.7,0.56237262]
[1771049790697,0.54614576,2052.2,2051.7,0.56237262]
[1771049791707,0.5518091,2052.2,2051.7,0.56237262]
[1771049793112,0.00566334,2052.2,2051.7,0.56237262]
[1771049793308,0.57331051,2052.2,2051.7,0.56237262]
[1771049794207,0.00566334,2052.2,2051.7,0.56237262]
[1771049794407,0.56764717,2052.4,2051.7,0.56237262]
[1771049795412,0.56764717,2052.0,2051.7,0.56237262]
[1771049795612,0.00556286,2052.4,2051.4,0.57561955]
[1771049795613,0.56764717,2051.8,2051.4,0.57561955]
[1771049795910,2.94828202,2051.9,2051.4,0.57561955]
[1771049796506,0.00556286,2052.4,2051.4,0.57561955]
[1771049796703,2.86e-06,2052.4,2052.1,0.57561955]
[1771049797304,0.56764717,2052.3,2051.9,0.57561955]
[1771049797703,2.94828202,2052.2,2051.5,0.57561955]
[1771049798313,2.94828488,2052.4,2051.7,0.57561955]
[1771049798610,0.56764717,2052.3,2051.7,0.57561955]
[1771049800712,0.53776753,2052.1,2051.4,0.56169191]
[1771049800910,0.53776753,2051.9,2051.3,0.56580889]
[1771049805913,0.53776753,2051.9,2051.3,0.00411698]
[1771049807516,0.53776753,2051.9,2051.3,0.56580889]
[1771049819023,2.91414768,2052.2,2051.3,0.56580889]
[1771049819325,0.53776753,2052.1,2051.3,0.56580889]
[1771049819628,0.53776753,2052.1,2051.5,0.56169191]
[1771049820325,0.53776753,2052.2,2051.5,0.56169191]
[1771049821230,0.57241658,2052.3,2051.5,0.56169191]
[1771049821830,0.57241658,2052.1,2051.5,0.56169191]
[1771049822030,0.57241658,2051.8,2051.2,0.57394774]
[1771049822231,0.57241658,2051.8,2051.0,0.57394774]
[1771049822430,0.57241658,2051.6,2051.0,0.57394774]
[1771049823133,0.57241658,2051.6,2051.0,0.58005655]
[1771049829139,0.57241658,2051.6,2051.0,0.00610881]
[1771049830333,0.57241658,2051.4,2051.0,0.00610881]
[1771049830532,0.57241658,2051.4,2050.7,0.57394774]
[1771049831535,0.57241658,2051.4,2050.7,0.57874239]
[1771049832942,0.57241658,2051.4,2050.7,0.00479465]
[1771049833440,0.57241658,2051.4,2050.7,0.57874239]
[1771049834647,0.57241658,2051.2,2050.7,0.00479465]
[1771049836345,0.57241658,2051.2,2050.7,0.57874239]
[1771049837644,0.57241658,2051.3,2050.7,0.57874239]
[1771049839041,0.57241658,2051.8,2050.7,0.57874239]
[1771049839246,0.57241658,2051.6,2050.7,0.57874239]
[1771049843649,0.57241658,2051.5,2050.7,0.57874239]
[1771049852358,0.56241403,2051.3,2050.7,0.57874239]
[1771049856665,0.56241403,2051.3,2050.7,0.00479465]
[1771049858867,0.56241403,2051.0,2050.7,0.00479465]
[1771049859067,0.56241403,2051.0,2050.5,0.574034]
[1771049859965,0.56241403,2051.0,2050.5,0.57876077]
[1771049863467,2.37935311,2051.5,2050.5,0.57876077]
[1771049863468,0.5765241,2050.8,2050.5,0.57876077]
[1771049863668,0.00416727,2050.8,2050.5,0.57876077]
[1771049864973,0.58069137,2050.8,2050.5,0.57876077]
[1771049865174,0.58069137,2050.8,2050.4,0.78932538]
[1771049866172,0.58069137,2050.8,2050.4,0.79373553]
[1771049866874,0.58069137,2050.8,2050.5,0.54534538]
[1771049867573,0.58069137,2050.8,2050.4,0.79373553]
[1771049871578,0.58069137,2050.8,2050.5,0.54534538]
[1771049874073,0.00416727,2050.8,2050.5,0.54534538]
[1771049876180,0.00416727,2050.8,2050.5,0.48650835]
[1771049877182,0.5765241,2051.1,2050.5,0.48650835]
[1771049878083,0.5814531,2051.1,2050.5,0.49261503]
[1771049879183,0.004929,2051.1,2050.5,0.49261503]
[1771049879773,0.004929,2051.1,2050.7,0.48099365]
[1771049880182,7.00387721,2051.4,2050.7,0.48099365]
[1771049880786,0.5765241,2051.3,2050.7,0.48099365]
[1771049881180,0.57998653,2051.3,2050.7,0.48099365]
[1771049881380,0.00346243,2051.3,2050.7,0.48099365]
[1771049881782,4.048,2051.4,2050.9,0.48217534]
[1771049881977,0.54086595,2051.9,2050.9,0.48217534]
[1771049882276,0.54086595,2051.9,2050.8,2.37935311]
[1771049882277,0.54086595,2051.8,2051.1,0.48448765]
[1771049882476,0.54086595,2051.8,2051.3,0.48448765]
[1771049882680,0.54086595,2052.0,2051.3,0.48448765]
[1771049882987,0.00559116,2052.0,2051.5,0.48448765]
[1771049893390,0.54086595,2052.3,2051.7,0.4968623]
[1771049893794,0.54086595,2052.4,2051.7,0.4968623]
[1771049893994,2.37935311,2052.3,2051.7,0.4968623]
[1771049894494,2.38304088,2052.3,2051.7,0.4968623]
[1771049894891,0.54086595,2052.2,2051.7,0.4968623]
[1771049895095,0.54086595,2052.0,2051.7,0.4968623]
[1771049900206,0.54086595,2052.0,2051.4,0.24385]
[1771049900505,0.54086595,2052.0,2051.5,0.53340984]
[1771049905307,2.37935311,2052.1,2051.5,0.53340984]
[1771049905504,0.00368777,2052.3,2051.5,0.53340984]
[1771049905710,2.38304088,2052.3,2051.5,0.53340984]
[1771049905907,2.92390683,2052.3,2051.5,0.53340984]
[1771049906609,0.54086595,2052.2,2051.5,0.53340984]
[1771049908412,0.54086595,2052.2,2051.7,0.53369593]
[1771049909007,0.54086595,2052.0,2051.7,0.53369593]
[1771049912815,2.96165414,2052.1,2051.7,0.53369593]
[1771049913115,2.37935311,2052.1,2051.7,0.53369593]
[1771049914918,0.58230103,2052.2,2051.7,0.53369593]
[1771049917617,2.38304088,2052.3,2051.7,0.53369593]
[1771049917917,2.96534191,2052.3,2051.7,0.53369593]
[1771049919012,0.5859888,2052.3,2051.7,0.53369593]
[1771049919318,0.56100894,2052.2,2051.7,0.53369593]
[1771049921315,0.56100894,2052.2,2051.6,0.24384]
[1771049921620,0.56100894,2052.0,2051.6,0.78170976]
[1771049922225,0.56100894,2052.0,2051.6,0.53786976]
[1771049930018,0.56100894,2052.0,2051.1,10.42929]
[1771049930221,0.56100894,2052.0,2051.2,0.54637145]
[1771049931521,2.37644426,2052.1,2051.2,0.54637145]
[1771049931522,0.56100894,2051.8,2051.2,0.54637145]
[1771049941626,0.56803759,2052.0,2051.4,0.53058853]
[1771049960141,0.56803759,2051.8,2051.3,0.24388]
[1771049961441,17.3762,2051.4,2051.3,0.24388]
[1771049961641,17.3762,2051.4,2051.2,0.5271261]
[1771049961843,17.3762,2051.4,2051.2,0.17693507]
[1771049962238,17.3762,2051.4,2051.3,0.24388]
[1771049965753,0.56803759,2051.5,2051.3,0.24388]
[1771049968655,0.56803759,2051.8,2051.3,0.77446853]
[1771049968958,0.56803759,2051.8,2051.4,0.53058853]
[1771049969452,0.56803759,2052.0,2051.4,0.53058853]
[1771049969854,1.90100245,2051.3,2051.0,6.78944426]
[1771049970053,0.56803759,2051.9,2051.1,0.18831291]
[1771049971057,0.56803759,2051.9,2051.1,0.43221291]
[1771049971253,0.56803759,2051.9,2051.2,0.59989816]
[1771049972055,0.56803759,2051.9,2051.4,0.59075356]
[1771049977660,2.38013203,2052.3,2051.4,0.59075356]
[1771049977661,0.72053026,2052.2,2051.4,0.59075356]
[1771049978261,0.72053026,2052.0,2051.4,0.59075356]
[1771049979160,0.72053026,2052.0,2051.3,0.96727434]
[1771049980960,0.75355067,2051.7,2051.3,0.96727434]
[1771049982562,0.75355067,2051.7,2051.4,0.72339434]
[1771049984469,0.75355067,2051.8,2051.4,0.72339434]
[1771049984658,0.75355067,2052.1,2051.6,0.72339434]
[1771049985063,0.75355067,2052.0,2051.6,0.72339434]
[1771049985764,6.59515293,2052.3,2051.6,0.72339434]
[1771049985968,0.75355067,2052.2,2051.6,0.72339434]
[1771049991567,0.75355067,2051.8,2051.5,0.24385]
[1771049991967,0.75355067,2051.8,2051.3,0.72339434]
[1771049993174,0.75355067,2051.8,2051.5,0.24385]
[1771049995475,0.75355067,2051.9,2051.5,0.96724434]
[1771049996173,0.75355067,2051.9,2051.5,0.24385]
[1771049998674,0.75355067,2051.9,2051.5,0.96724434]
[1771049999075,0.75355067,2051.9,2051.5,0.24385]
[1771049999275,0.75355067,2051.8,2051.5,0.24385]
[1771050000276,0.75355067,2051.8,2051.3,0.72339434]
[1771050001078,0.75355067,2051.8,2051.5,0.24385]
[1771050001780,0.6927006,2051.6,2051.1,0.65975266]
[1771050002078,0.6927006,2051.4,2051.0,0.24391]
[1771050002479,0.6927006,2051.4,2051.0,0.90366266]
[1771050003174,0.6927006,2051.4,2051.0,0.24391]
[1771050003375,0.6927006,2051.2,2050.8,0.65975266]
[1771050003579,0.6927006,2051.2,2050.7,5.18275266]
[1771050003778,0.6927006,2051.2,2050.8,0.65975266]
[1771050006782,0.6927006,2051.2,2050.5,0.90982934]
[1771050006983,0.6927006,2051.2,2050.5,3.2872945]
[1771050007185,0.6927006,2051.2,2050.6,0.65975266]
[1771050009181,0.6927006,2051.4,2050.7,2.37746516]
[1771050009387,0.6927006,2051.4,2050.8,0.65975266]
[1771050012588,0.6927006,2051.4,2050.6,0.65975266]
[1771050012789,0.6927006,2051.0,2050.5,0.90982934]
[1771050015293,0.6927006,2051.0,2050.6,0.65975266]
[1771050016095,3.07016576,2051.3,2050.6,0.65975266]
[1771050016391,0.6927006,2051.3,2050.8,0.65975266]
[1771050036304,0.65079679,2051.5,2051.0,0.60815719]
[1771050039911,0.61343714,2051.4,2051.0,0.60815719]
[1771050049317,0.61343714,2051.4,2050.9,0.83558102]
[1771050050617,0.61343714,2051.4,2051.0,0.59166102]
[1771050050819,0.61343714,2051.4,2050.9,0.24392]
[1771050051119,0.61343714,2051.4,2050.9,0.83558102]
[1771050060628,0.61343714,2051.4,2050.9,0.24392]
[1771050060823,0.61343714,2051.2,2050.6,0.59166102]
[1771050063234,0.5589102,2051.7,2050.9,0.84651708]
[1771050063427,0.5589102,2051.5,2050.9,0.84651708]
[1771050069140,0.5589102,2051.5,2051.0,0.60259708]
[1771050072731,6.46059815,2051.8,2051.2,0.60259708]
[1771050072732,0.5589102,2051.8,2051.2,0.60259708]
[1771050073931,0.5589102,2051.6,2051.1,0.2439]
[1771050074840,0.5589102,2051.6,2050.5,2.38431551]
[1771050074841,0.5589102,2051.4,2050.8,0.60259708]
[1771050080340,0.5589102,2051.5,2050.8,0.60259708]
[1771050082247,0.5589102,2051.5,2051.0,0.60259708]
[1771050083048,4.8279102,2051.7,2051.0,0.60259708]
[1771050083345,0.5589102,2051.6,2051.0,0.60259708]
[1771050084143,0.5589102,2051.9,2051.0,0.60259708]
[1771050084348,0.5589102,2051.9,2051.2,0.60259708]
[1771050085148,0.55553184,2051.9,2051.2,0.60259708]
[1771050086250,0.5589102,2051.7,2051.1,0.84649708]
[1771050093354,0.5589102,2051.7,2050.9,0.54648072]
[1771050099263,0.54420084,2051.5,2050.8,0.53694336]
[1771050103174,0.54420084,2051.5,2050.6,4.78295]
[1771050103175,0.54420084,2051.3,2050.6,0.78089336]
[1771050103676,0.54420084,2051.3,2050.7,0.53694336]
[1771050104875,0.54420084,2051.2,2050.7,0.53694336]
[1771050112483,4.08238932,2051.8,2050.6,0.24395]
[1771050112484,0.54420084,2051.0,2050.6,0.24395]
[1771050113580,0.54420084,2051.0,2050.6,0.78089336]
[1771050113786,2.92297976,2051.1,2050.7,0.53694336]
[1771050114085,0.54420084,2051.0,2050.7,0.53694336]
[1771050124398,0.54420084,2051.0,2050.6,0.78324553]
[1771050124996,0.54420084,2051.0,2050.6,0.24395]
[1771050125198,0.54420084,2051.0,2050.5,0.54540221]
[1771050125199,0.54420084,2051.0,2050.5,0.00610668]
[1771050125394,0.53254794,2050.8,2050.5,0.00610668]
[1771050125593,0.53841811,2050.8,2050.3,0.53929553]
[1771050126600,0.53841811,2050.8,2050.3,0.54515096]
[1771050126995,0.53254794,2051.0,2050.5,0.53929553]
[1771050127202,0.53254794,2051.2,2050.7,0.53929553]
[1771050128100,0.53831628,2051.2,2050.7,0.53929553]
[1771050130994,0.53831628,2051.2,2050.5,0.53929553]
[1771050133203,0.00576834,2051.2,2050.7,0.53929553]
[1771050133702,0.53254794,2051.1,2050.7,0.53929553]
[1771050133906,0.53254794,2051.1,2050.5,0.53929553]
[1771050134299,2.37877892,2051.0,2050.1,9.64610447]
[1771050134500,4.75755784,2050.2,2049.4,0.58738395]
[1771050134707,2.37877892,2049.9,2049.4,0.58738395]
[1771050134905,0.53254794,2049.8,2048.9,0.53929553]
[1771050135509,2.37877892,2050.1,2049.3,0.53929553]
[1771050135802,2.91132686,2050.1,2049.5,0.53929553]
[1771050137003,0.53254794,2050.0,2049.5,0.53929553]
[1771050138406,0.53254794,2050.7,2050.0,0.53929553]
[1771050138907,2.91132686,2050.6,2050.0,0.53929553]
[1771050140906,0.53254794,2050.6,2050.0,0.53929553]
[1771050151112,0.5957799,2051.0,2050.0,0.53929553]
[1771050162916,2.38029436,2050.6,2050.0,0.53929553]
[1771050166920,0.57841768,2050.7,2050.0,0.53929553]
[1771050184441,0.57533264,2050.6,2050.0,0.53929553]
[1771050195145,0.58672198,2050.7,2050.1,0.60697934]
[1771050226869,2.38033924,2050.5,2050.1,0.60697934]
[1771050227674,2.95378334,2050.5,2050.1,0.60697934]
[1771050228275,2.38033924,2050.3,2050.1,0.60697934]
[1771050228470,2.38033924,2050.3,2050.1,0.56206329]
[1771050228866,0.5734441,2050.4,2050.1,0.56206329]
[1771050234579,2.95378334,2050.5,2050.1,0.56206329]
[1771050235883,0.5734441,2050.4,2050.1,0.56206329]
[1771050238379,2.38033924,2050.3,2050.1,0.56206329]
[1771050241387,0.60037323,2050.2,2049.8,0.57274648]
[1771050241685,2.38033924,2050.1,2049.8,0.57274648]
[1771050242385,2.38033924,2049.9,2049.6,0.57274648]
[1771050242576,0.60037323,2049.8,2049.5,0.24408]
[1771050242779,0.60037323,2049.8,2049.4,0.57274648]
[1771050243081,0.36699594,2049.8,2049.4,0.57274648]
[1771050244091,0.36699594,2049.8,2049.5,0.81682648]
[1771050245386,0.36699594,2049.8,2049.5,0.24408]
[1771050245687,0.36699594,2049.8,2049.5,0.81682648]
[1771050246992,2.98071247,2049.7,2049.5,0.24408]
[1771050247286,2.98459065,2049.7,2049.3,0.57274648]
[1771050247889,2.98459065,2049.7,2049.5,0.24408]
[1771050248092,0.60037323,2049.6,2049.3,0.57274648]
[1771050249291,0.37200222,2049.6,2049.5,0.24408]
[1771050249484,2.38421742,2049.7,2049.3,0.57274648]
[1771050249681,2.98459065,2049.7,2049.3,0.57274648]
[1771050250185,2.98459065,2049.7,2049.5,0.24408]
[1771050250382,2.75637309,2049.7,2049.3,0.57274648]
[1771050250584,2.52811577,2049.7,2049.3,0.57274648]
[1771050251094,2.52811577,2049.7,2049.5,0.24408]
[1771050251292,2.52811577,2049.7,2049.3,0.57274648]
[1771050252195,2.52811577,2049.7,2049.5,0.24408]
[1771050252397,2.52811577,2049.7,2049.4,0.57274648]
[1771050252890,0.60037323,2049.6,2049.1,4.422]
[1771050253097,0.60037323,2049.4,2049.1,0.57274648]
[1771050253397,2.38033924,2049.3,2049.1,0.57274648]
[1771050253598,2.98071247,2049.3,2049.0,0.81688648]
[1771050254399,2.38033924,2049.1,2048.9,0.57693435]
[1771050255803,0.60037323,2049.3,2048.9,0.57693435]
[1771050255804,0.60037323,2049.2,2048.9,0.00418787]
[1771050256100,2.98071247,2049.3,2049.0,0.81688648]
[1771050257395,2.98071247,2049.3,2049.0,0.24414]
[1771050257700,0.60037323,2049.2,2049.0,0.24414]
[1771050258002,0.60037323,2049.2,2048.9,0.00418787]
[1771050260501,0.60037323,2049.2,2048.9,0.57693435]
[1771050261604,2.98071247,2049.3,2048.9,0.57693435]
[1771050261798,0.60037323,2049.2,2048.9,0.57693435]
[1771050265909,0.60037323,2049.2,2048.9,0.00418787]
[1771050267412,0.60037323,2049.3,2048.9,0.57693435]
[1771050268410,0.60037323,2049.4,2048.9,0.57693435]
[1771050271617,0.62575582,2049.5,2049.2,0.58409336]
[1771050272015,0.62575582,2049.6,2049.2,0.58409336]
[1771050272318,0.62575582,2049.9,2049.4,0.58409336]
[1771050273412,0.63143862,2049.9,2049.4,0.58409336]
[1771050275515,0.62575582,2049.5,2049.3,0.24412]
[1771050278523,0.62575582,2049.6,2049.3,0.82821336]
[1771050279223,0.62575582,2049.6,2049.3,0.24412]
[1771050280124,0.62491587,2049.5,2049.3,0.24412]
[1771050292932,0.62491587,2049.7,2049.3,0.83460515]
[1771050293127,0.62491587,2049.7,2049.4,0.59048515]
[1771050293332,0.62491587,2049.8,2049.4,0.59048515]
[1771050294327,0.62491587,2049.6,2049.3,0.24024182]
[1771050294536,0.62491587,2049.6,2049.3,0.83072697]
[1771050295830,2.38827069,2049.9,2049.3,0.83072697]
[1771050295831,0.62491587,2049.8,2049.4,0.59048515]
[1771050296134,0.63059867,2049.9,2049.4,0.59048515]
[1771050296332,0.63059867,2049.9,2049.3,0.24024182]
[1771050297636,0.62491587,2049.8,2049.3,0.24024182]
[1771050301438,0.62491587,2049.8,2049.3,0.818215]
[1771050301834,0.64408524,2049.9,2049.4,0.57797318]
[1771050302331,0.64408524,2049.9,2049.5,0.24409]
[1771050302541,0.64408524,2049.9,2049.6,0.57797318]
[1771050303335,0.63840244,2050.2,2049.6,0.57797318]
[1771050304441,0.6430716,2050.2,2049.6,0.57797318]
[1771050305741,0.6430716,2050.2,2049.8,0.57797318]
[1771050307143,0.00466916,2050.2,2049.8,0.57797318]
[1771050308144,0.63840244,2050.4,2049.8,0.57797318]
[1771050309045,0.63840244,2050.4,2050.0,0.57797318]
[1771050309239,0.00379896,2050.4,2050.0,0.57797318]
[1771050309445,0.6422014,2050.4,2050.0,0.57797318]
[1771050310045,0.00379896,2050.4,2050.0,0.57797318]
[1771050310246,0.63840244,2050.7,2050.2,0.57797318]
[1771050311144,0.64360103,2050.7,2050.2,0.57797318]
[1771050312645,0.00519859,2050.7,2050.4,0.57797318]
[1771050312852,0.63840244,2050.8,2050.4,0.58337179]
[1771050313443,0.63840244,2051.4,2050.6,0.57797318]
[1771050313752,0.63840244,2051.2,2050.6,0.57797318]
[1771050313949,0.63840244,2051.2,2050.6,0.57459831]
[1771050314750,0.00556721,2051.4,2050.8,0.57797318]
[1771050314751,0.63840244,2051.3,2050.8,0.57797318]
[1771050316856,0.63840244,2051.2,2050.8,0.57797318]
[1771050322660,0.63840244,2051.2,2050.8,0.58166871]
[1771050323061,0.64396965,2051.4,2050.8,0.58166871]
[1771050329573,0.63840244,2051.2,2050.8,0.00369553]
[1771050332268,0.63840244,2051.2,2050.8,0.65989576]
[1771050334368,0.65617996,2052.7,2051.5,5.99891]
[1771050334572,0.62375124,2053.2,2052.1,0.29023673]
[1771050334866,0.62375124,2053.2,2051.9,2.38258789]
[1771050334867,0.62375124,2053.2,2052.3,0.65617949]
[1771050335370,0.62931173,2053.2,2052.3,0.66130969]
[1771050336072,0.62931173,2053.2,2052.4,0.89995023]
[1771050345174,0.73274629,2053.0,2052.4,0.24375]
[1771050345373,0.73274629,2052.8,2052.3,0.0051302]
[1771050346079,0.73274629,2052.8,2052.4,0.24375]
[1771050348872,0.73274629,2052.8,2052.4,1.00624688]
[1771050350678,0.73274629,2052.8,2052.4,0.24375]
[1771050350877,0.73274629,2052.7,2052.4,0.24375]
[1771050353377,0.73274629,2052.5,2051.9,0.76249688]
[1771050353577,0.73274629,2052.5,2051.9,4.80749688]
[1771050353978,0.73274629,2052.5,2052.0,0.76249688]
[1771050354481,0.73274629,2052.5,2052.0,0.7666836]
[1771050355079,0.73274629,2052.5,2052.1,0.76249688]
[1771050355783,3.1081168,2052.8,2052.1,0.76249688]
[1771050356081,0.73274629,2052.8,2052.2,0.76249688]
[1771050358583,3.1081168,2052.8,2052.2,0.76249688]
[1771050358778,0.73274629,2052.7,2052.2,0.76249688]
[1771050360287,0.73274629,2052.7,2052.1,0.76249688]
[1771050360785,0.73274629,2052.7,2052.0,0.24797672]
[1771050360786,0.73274629,2052.5,2052.0,0.24797672]
[1771050361481,0.73274629,2052.5,2052.0,0.9810046]
[1771050363284,0.71250244,2052.3,2052.0,0.24797672]
[1771050364490,0.71250244,2052.3,2051.7,0.73302788]
[1771050365084,0.71250244,2052.1,2051.7,0.73302788]
[1771050365391,0.71250244,2052.1,2051.7,0.73667761]
[1771050365588,0.71250244,2052.1,2051.7,0.00364973]
[1771050365788,0.71250244,2052.1,2051.6,0.73302788]
[1771050366692,0.71250244,2052.1,2051.6,0.73729126]
[1771050369495,0.71250244,2052.1,2051.7,0.24383]
[1771050369794,0.71250244,2052.1,2051.7,0.97685788]
[1771050374796,0.71250244,2051.9,2051.7,0.24383]
[1771050374998,0.71250244,2051.9,2051.6,4.40926338]
[1771050376104,0.71250244,2051.9,2051.7,0.24383]
[1771050376803,0.71250244,2051.7,2051.6,0.00426338]
[1771050376997,0.71728741,2051.7,2051.4,5.14702788]
[1771050377305,0.71728741,2051.7,2051.4,4.99279515]
[1771050378006,0.71728741,2051.7,2051.4,4.41854833]
[1771050378303,0.71728741,2051.7,2051.4,0.73757621]
[1771050379003,0.71728741,2051.7,2051.4,0.00454833]
[1771050390911,0.71728741,2051.7,2051.2,0.24388]
[1771050391112,0.71728741,2051.7,2051.2,0.98908166]
[1771050392013,0.71728741,2051.7,2051.2,0.99300937]
[1771050394616,0.71728741,2051.7,2051.2,0.24780771]
[1771050395423,0.71728741,2051.7,2051.2,0.99300937]
[1771050397623,0.71728741,2051.7,2051.3,0.74520166]
[1771050399921,0.71728741,2051.7,2051.2,0.24780771]
[1771050400124,0.7400714,2051.5,2051.2,0.24780771]
[1771050403324,0.7400714,2051.5,2051.2,0.98682965]
[1771050403528,0.7400714,2051.6,2051.3,0.73902194]
[1771050403924,0.7400714,2051.6,2051.2,0.98682965]
[1771050405029,0.7400714,2051.6,2051.3,0.73902194]
[1771050408433,0.00478497,2051.7,2051.3,0.73902194]
[1771050408830,0.74485637,2051.7,2051.3,0.73902194]
[1771050409221,0.74485637,2051.7,2051.2,2.62317822]
[1771050409222,0.7400714,2052.0,2051.5,0.73902194]
[1771050409423,0.7400714,2052.2,2051.7,0.73902194]
[1771050409727,0.7400714,2052.1,2051.7,0.73902194]
[1771050410327,0.74499253,2052.1,2051.7,0.73902194]
[1771050411129,0.74499253,2052.1,2051.6,0.98286194]
[1771050411529,0.74499253,2052.1,2051.7,0.73902194]
[1771050415235,0.74499253,2052.1,2051.6,0.24384]
[1771050418140,0.74499253,2052.1,2051.6,0.98286194]
[1771050422544,0.74499253,2052.1,2051.7,0.67814495]
[1771050423445,0.00492113,2052.1,2051.7,0.67814495]
[1771050442471,0.66947297,2052.1,2051.7,0.67814495]
[1771050442866,0.00492113,2052.1,2051.7,0.67814495]
[1771050456987,0.69858096,2052.4,2051.7,0.67814495]
[1771050457187,6.16307663,2052.3,2051.7,0.67814495]
[1771050457392,0.69858096,2052.4,2051.7,0.67814495]
[1771050457984,0.70447562,2052.4,2051.9,0.67699001]
[1771050466894,0.74479599,2052.1,2051.5,0.68021445]
[1771050467390,0.74479599,2052.1,2051.6,0.68021445]
[1771050470290,0.74479599,2052.1,2051.4,6.4488]
[1771050470291,0.74479599,2052.1,2051.4,2.0668]
[1771050470592,0.74479599,2052.0,2051.5,0.68021445]
[1771050472892,0.74479599,2051.8,2051.5,0.68021445]
[1771050473389,0.74479599,2051.8,2051.4,2.74701445]
[1771050473590,0.74479599,2051.8,2051.4,2.0668]
[1771050473888,0.74479599,2051.6,2051.4,2.0668]
[1771050474693,2.72591697,2051.7,2051.4,2.74701445]
[1771050476395,1.98112098,2051.7,2051.5,0.68021445]
[1771050476996,2.72591697,2051.9,2051.5,0.68021445]
[1771050478491,0.74479599,2051.8,2051.5,0.68021445]
[1771050478694,1.98112098,2051.9,2051.5,0.68021445]
[1771050478695,2.72591697,2051.9,2051.5,0.68021445]
[1771050481395,1.98112098,2051.9,2051.5,0.68021445]
[1771050483094,2.71659422,2051.9,2051.5,0.68021445]
[1771050484095,0.73547324,2051.8,2051.5,0.68021445]
[1771050489601,0.73547324,2051.8,2051.4,2.0668]
[1771050489799,0.73547324,2051.8,2051.4,2.78388837]
[1771050489999,0.73547324,2051.8,2051.5,0.71708837]
[1771050491701,2.71659422,2051.9,2051.5,0.71708837]
[1771050492898,1.98112098,2051.9,2051.5,0.71708837]
[1771050493102,2.71659422,2052.1,2051.5,0.71708837]
[1771050493700,0.73547324,2052.0,2051.5,0.71708837]
[1771050493896,1.98112098,2052.1,2051.5,0.71708837]
[1771050494902,2.71659422,2052.1,2051.5,0.71708837]
[1771050498704,0.73547324,2052.1,2051.5,0.71708837]
[1771050500503,0.73547324,2052.3,2051.8,0.71708837]
[1771050503010,0.7413679,2052.4,2051.8,0.71708837]
[1771050513423,0.7413679,2052.4,2052.0,0.73096674]
[1771050514325,0.7413679,2052.4,2051.9,2.45037674]
[1771050517324,1.98112098,2052.3,2051.9,1.71941]
[1771050517529,0.69330065,2052.2,2051.9,1.71941]
[1771050528336,0.69330065,2052.2,2051.9,2.40399956]
[1771050530146,0.69330065,2052.2,2051.9,1.71941]
[1771050532447,0.69330065,2052.2,2051.9,2.40399956]
[1771050543160,0.68957088,2052.3,2052.0,0.72438731]
[1771050543461,0.68957088,2052.3,2051.9,1.71941]
[1771050543657,2.66994474,2052.3,2051.6,0.72438731]
[1771050543861,0.10184092,2052.2,2051.6,0.72438731]
[1771050544057,0.10184092,2052.0,2051.6,0.72438731]
[1771050544455,2.07643162,2052.1,2051.6,0.72438731]
[1771050544859,0.09605776,2052.0,2051.6,0.72438731]
[1771050545053,0.09605776,2052.2,2051.6,0.72438731]
[1771050554965,1.98037386,2052.3,2051.6,0.72438731]